fUST/lending_fUST_20250529
["ID","MTS","AMOUNT","RATE_DAILY","PERIOD"]
[362854664,1748493032930,-226.0,0.00019898,2]
[362854665,1748493032939,-3393.87101868,0.00019899,2]
[362854706,1748493038815,-562.7876311,0.00019899,2]
[362854709,1748493038829,-3805.81781365,0.00019899,2]
[362854711,1748493038843,-2142.57812778,0.00019899,2]
[362854714,1748493038854,-430.0,0.00019899,2]
[362854716,1748493038865,-430.0,0.00019899,2]
[362854718,1748493038875,-430.0,0.00019899,2]
[362854720,1748493038886,-430.0,0.00019899,2]
[362854722,1748493038899,-430.0,0.00019899,2]
[362854724,1748493038910,-462.51408139,0.00019899,2]
[362854726,1748493038921,-430.0,0.00019899,2]
[362854728,1748493038932,-587.13,0.00019899,2]
[362854731,1748493038943,-430.0,0.00019899,2]
[362854733,1748493038953,-430.0,0.00019899,2]
[362854735,1748493038964,-430.0,0.0001997,2]
[362854737,1748493038973,-430.0,0.0001997,2]
[362854739,1748493038984,-401.53332796,0.0001997,2]
[362854741,1748493038997,-434.45447298,0.0001997,2]
[362854743,1748493039011,-517.65552702,0.0001997,2]
[362854746,1748493039025,-1126.21,0.0001997,2]
[362854748,1748493039036,-578.02,0.0001997,2]
[362854750,1748493039048,-450.5663208,0.00019971,2]
[362854752,1748493039060,-903.49254498,0.00019971,2]
[362854755,1748493039074,-1105.57745502,0.00019971,2]
[362854757,1748493039086,-430.0,0.00019971,2]
[362854759,1748493039097,-502.85648138,0.00019971,2]
[362854762,1748493039111,-110.04351862,0.00019971,2]
[362854764,1748493039123,-611.43,0.00019971,2]
[362854766,1748493039135,-75.75032337,0.00019971,2]
[362855218,1748493043830,-300.0,0.00019898,2]
[362855221,1748493043843,-430.0,0.0001997,2]
[362855223,1748493043854,-354.24967663,0.00019971,2]
[362855225,1748493043865,-430.0,0.00019971,2]
[362855228,1748493043877,-430.0,0.00019971,2]
[362855230,1748493043888,-430.0,0.00019971,2]
[362855232,1748493043898,-430.0,0.00019971,2]
[362855234,1748493043909,-430.0,0.00019971,2]
[362855236,1748493043919,-400.6395,0.00019971,2]
[362855238,1748493043931,-430.0,0.00019971,2]
[362855240,1748493043941,-430.0,0.00019971,2]
[362855244,1748493043951,-430.0,0.00019971,2]
[362855246,1748493043960,-516.54,0.00019971,2]
[362855248,1748493043969,-430.0,0.00019971,2]
[362855250,1748493043978,-672.89,0.00019971,2]
[362855252,1748493043989,-430.0,0.00019992,2]
[362855254,1748493043999,-168.72,0.00019992,2]
[362855256,1748493044010,-430.0,0.00019992,2]
[362855258,1748493044018,-430.0,0.00019992,2]
[362855261,1748493044029,-430.0,0.00019992,2]
[362855263,1748493044038,-430.0,0.00019992,2]
[362855265,1748493044050,-455.42385147,0.00019992,2]
[362855267,1748493044061,-430.0,0.00019992,2]
[362855269,1748493044071,-430.0,0.00019992,2]
[362855271,1748493044082,-430.0,0.00019992,2]
[362855274,1748493044094,-430.0,0.00019992,2]
[362855276,1748493044104,-430.0,0.00019992,2]
[362855278,1748493044115,-430.0,0.00019992,2]
[362855280,1748493044126,-430.0,0.00019992,2]
[362855281,1748493044137,-430.0,0.00019992,2]
[362855282,1748493044148,-509.88,0.00019992,2]
[362855283,1748493044159,-430.0,0.00019992,2]
[362855284,1748493044170,-430.0,0.00019992,2]
[362855285,1748493044182,-473.2937816,0.00019992,2]
[362855286,1748493044193,-209.1539751,0.00019992,2]
[362855287,1748493044203,-326.7062184,0.00019992,2]
[362855288,1748493044214,-506.89840306,0.00019992,2]
[362855289,1748493044226,-517.25508792,0.00019993,2]
[362855290,1748493044240,-430.0,0.00019993,2]
[362855291,1748493044251,-509.13382741,0.00019993,2]
[362855292,1748493044262,-430.0,0.00019993,2]
[362855293,1748493044275,-246.01438803,0.00019993,2]
[362855294,1748493044285,-400.0,0.00019993,2]
[362855297,1748493044295,-507.52922009,0.00019993,2]
[362855299,1748493044306,-449.12365192,0.00019993,2]
[362855301,1748493044317,-430.0,0.00019993,2]
[362855303,1748493044329,-430.0,0.00019993,2]
[362855305,1748493044340,-474.12046204,0.00019993,2]
[362855307,1748493044351,-430.0,0.00019993,2]
[362855309,1748493044361,-430.0,0.00019993,2]
[362855311,1748493044372,-430.0,0.00019993,2]
[362855314,1748493044384,-430.0,0.00019993,2]
[362855316,1748493044396,-430.0,0.00019993,2]
[362855318,1748493044406,-491.06491886,0.00019993,2]
[362855320,1748493044417,-430.0,0.00019993,2]
[362855322,1748493044428,-435.91555211,0.00019993,2]
[362855324,1748493044438,-430.0,0.00019993,2]
[362855326,1748493044449,-430.0,0.00019993,2]
[362855343,1748493044607,-380.72048411,0.00019993,2]
[362855346,1748493044622,-473.97277735,0.00019993,2]
[362855348,1748493044632,-300.80297109,0.00019993,2]
[362855350,1748493044641,-332.63020343,0.00019993,2]
[362855352,1748493044651,-430.0,0.00019993,2]
[362855354,1748493044661,-430.0,0.00019993,2]
[362855356,1748493044671,-430.0,0.00019993,2]
[362855358,1748493044680,-386.64023349,0.00019993,2]
[362855360,1748493044690,-430.0,0.00019993,2]
[362855362,1748493044699,-430.0,0.00019993,2]
[362855364,1748493044708,-349.73989259,0.00019993,2]
[362855366,1748493044718,-349.28049335,0.00019993,2]
[362855368,1748493044727,-409.95827375,0.00019993,2]
[362855370,1748493044736,-350.31654117,0.00019993,2]
[362855372,1748493044746,-430.0,0.00019993,2]
[362855374,1748493044755,-430.0,0.00019993,2]
[362855376,1748493044764,-430.0,0.00019993,2]
[362855378,1748493044775,-385.90702769,0.00019993,2]
[362855380,1748493044784,-155.72141373,0.00019993,2]
[362855382,1748493044794,-434.16310397,0.00019993,2]
[362855384,1748493044803,-430.0,0.00019993,2]
[362855386,1748493044812,-444.86,0.00019993,2]
[362855388,1748493044821,-457.48,0.00019993,2]
[362855390,1748493044831,-430.0,0.00019993,2]
[362855392,1748493044840,-385.04879985,0.00019993,2]
[362855394,1748493044849,-173.22,0.00019993,2]
[362855396,1748493044858,-430.0,0.00019993,2]
[362855398,1748493044867,-430.0,0.00019993,2]
[362855400,1748493044877,-430.0,0.00019993,2]
[362855402,1748493044886,-430.0,0.00019993,2]
[362855404,1748493044895,-430.0,0.00019993,2]
[362855406,1748493044905,-430.0,0.00019993,2]
[362855408,1748493044914,-430.0,0.00019993,2]
[362855410,1748493044924,-430.0,0.00019993,2]
[362855412,1748493044933,-430.0,0.00019993,2]
[362855414,1748493044942,-500.0,0.00019993,2]
[362855416,1748493044952,-967.28,0.00019993,2]
[362855418,1748493044961,-430.0,0.00019993,2]
[362855420,1748493044971,-430.0,0.00019993,2]
[362855422,1748493044981,-430.0,0.00020173,2]
[362855424,1748493044990,-430.0,0.00020173,2]
[362855426,1748493045000,-430.0,0.00020173,2]
[362855428,1748493045010,-430.0,0.00020173,2]
[362855429,1748493045019,-430.0,0.00020173,2]
[362855431,1748493045030,-430.0,0.00020173,2]
[362855433,1748493045040,-587.13,0.00020173,2]
[362855435,1748493045050,-492.42747307,0.00020173,2]
[362855437,1748493045060,-430.0,0.00020173,2]
[362855440,1748493045070,-513.85908739,0.00020244,2]
[362855442,1748493045080,-430.0,0.00020244,2]
[362855443,1748493045089,-952.11,0.00020244,2]
[362855445,1748493045099,-1126.21,0.00020244,2]
[362855447,1748493045108,-578.02,0.00020244,2]
[362855450,1748493045119,-476.03533582,0.00020244,2]
[362855452,1748493045128,-2009.07,0.00020245,2]
[362855454,1748493045138,-612.9,0.00020245,2]
[362855456,1748493045147,-611.43,0.00020245,2]
[362855458,1748493045157,-430.0,0.00020245,2]
[362855460,1748493045166,-430.0,0.00020245,2]
[362855462,1748493045175,-430.0,0.00020245,2]
[362855464,1748493045184,-573.66,0.00020245,2]
[362855466,1748493045194,-516.54,0.00020245,2]
[362855468,1748493045205,-672.89,0.00020245,2]
[362855470,1748493045214,-430.0,0.00020266,2]
[362855472,1748493045223,-451.66686087,0.00020266,2]
[362855474,1748493045236,-430.0,0.00020266,2]
[362855476,1748493045245,-430.0,0.00020266,2]
[362855478,1748493045255,-459.4352748,0.00020266,2]
[362855480,1748493045264,-430.0,0.00020266,2]
[362855482,1748493045275,-430.0,0.00020266,2]
[362855484,1748493045284,-430.0,0.00020266,2]
[362855486,1748493045295,-430.0,0.00020266,2]
[362855488,1748493045304,-430.0,0.00020266,2]
[362855490,1748493045314,-455.28,0.00020267,2]
[362855492,1748493045324,-430.0,0.00020267,2]
[362855494,1748493045334,-430.0,0.00020267,2]
[362855496,1748493045343,-430.0,0.00020267,2]
[362855498,1748493045354,-430.0,0.00020267,2]
[362855500,1748493045363,-430.0,0.00020267,2]
[362855502,1748493045373,-430.0,0.00020267,2]
[362855504,1748493045382,-430.0,0.00020267,2]
[362855506,1748493045392,-430.0,0.00020267,2]
[362855508,1748493045401,-430.0,0.00020267,2]
[362855510,1748493045411,-430.0,0.00020267,2]
[362855512,1748493045420,-967.28,0.00020267,2]
[362855514,1748493045430,-430.0,0.00020267,2]
[362855516,1748493045439,-154.07914262,0.00020441,2]
[362855518,1748493045449,-430.0,0.00020447,2]
[362855520,1748493045459,-430.0,0.00020447,2]
[362855522,1748493045468,-430.0,0.00020447,2]
[362855524,1748493045477,-587.13,0.00020447,2]
[362855526,1748493045487,-430.0,0.00020447,2]
[362855528,1748493045498,-430.0,0.00020518,2]
[362855530,1748493045507,-142.44384151,0.00020518,2]
[362855532,1748493045520,-809.66615849,0.00020518,2]
[362855534,1748493045532,-1126.21,0.00020518,2]
[362855536,1748493045541,-22.08217472,0.00020518,2]
[362855669,1748493046767,-555.93782528,0.00020518,2]
[362855671,1748493046776,-274.70167472,0.00020519,2]
[362857186,1748493883153,2632.20469744,0.00016,2]
[362857187,1748493883176,9010.44128571,0.00016,2]
[362857188,1748493883200,8357.35401685,0.00016,2]
[362857232,1748494231866,-682.02497181,0.000189,2]
[362857234,1748494231876,-167.24897243,0.00019178,2]
[362857237,1748494231888,-11.04179357,0.00019178,2]
[362857239,1748494231899,-219.41007927,0.000197,2]
[362857241,1748494231908,-219.41007926,0.00019869,2]
[362857243,1748494231918,-150.77982722,0.0001987,2]
[362857245,1748494231928,-273.55843766,0.000199,2]
[362857247,1748494231937,-362.96,0.0001996,3]
[362857249,1748494231947,-300.0,0.00019966,2]
[362857251,1748494231957,-300.0,0.00019967,2]
[362857254,1748494231967,-284.09674086,0.00019967,2]
[362857261,1748494232027,-145.90325914,0.00019967,2]
[362857263,1748494232037,-430.0,0.00019967,2]
[362857265,1748494232048,-430.0,0.00019967,2]
[362857267,1748494232058,-430.0,0.00019967,2]
[362857269,1748494232068,-430.0,0.00019967,2]
[362857271,1748494232079,-443.23,0.00019967,2]
[362857273,1748494232088,-1738.56,0.00019967,2]
[362857275,1748494232098,-504.95529508,0.00019967,2]
[362857277,1748494232108,-430.0,0.00019967,2]
[362857279,1748494232118,-430.0,0.00019967,2]
[362857281,1748494232127,-430.0,0.00019967,2]
[362857283,1748494232137,-462.5465889,0.00019967,2]
[362857285,1748494232147,-430.0,0.00019967,2]
[362857287,1748494232157,-402.17366004,0.00019967,2]
[362857289,1748494232167,-500.0,0.00019967,2]
[362857291,1748494232177,-500.0,0.00019967,2]
[362857293,1748494232187,-490.54370378,0.00019967,2]
[362857296,1748494232197,-500.0,0.00019967,2]
[362857298,1748494232207,-500.0,0.00019967,2]
[362857300,1748494232218,-500.0,0.00019967,2]
[362857301,1748494232227,-500.0,0.00019967,2]
[362857303,1748494232237,-330.27817012,0.00019967,2]
[362857305,1748494232248,-500.0,0.00019967,2]
[362857307,1748494232258,-189.64195987,0.00019967,2]
[362857309,1748494232269,-430.0,0.00019968,2]
[362857312,1748494232279,-414.2167695,0.00019968,2]
[362857314,1748494232289,-430.0,0.00019968,2]
[362857316,1748494232299,-430.0,0.00019968,2]
[362857318,1748494232309,-430.0,0.00019968,2]
[362857320,1748494232319,-430.0,0.00019968,2]
[362857321,1748494232328,-430.0,0.00019968,2]
[362857324,1748494232339,-430.0,0.00019968,2]
[362857325,1748494232349,-510.24222169,0.00019968,2]
[362857327,1748494232359,-404.70291799,0.00019968,2]
[362857330,1748494232370,-430.0,0.00019968,2]
[362857332,1748494232381,-400.0,0.00019968,2]
[362857334,1748494232391,-309.580068,0.00019968,2]
[362857336,1748494232401,-430.0,0.00019968,2]
[362857338,1748494232411,-1891.53,0.00019968,2]
[362857340,1748494232421,-430.0,0.00019968,2]
[362857342,1748494232431,-400.0,0.00019968,2]
[362857344,1748494232443,-430.0,0.00019968,2]
[362857346,1748494232453,-400.0,0.00019968,2]
[362857347,1748494232463,-411.35613136,0.00019968,2]
[362857348,1748494232474,-738.68,0.00019968,2]
[362857349,1748494232484,-400.0,0.00019968,2]
[362857350,1748494232493,-400.0,0.00019968,2]
[362857351,1748494232503,-428.74166662,0.00019968,2]
[362857353,1748494232513,-400.0,0.00019968,2]
[362857355,1748494232522,-400.0,0.00019968,2]
[362857357,1748494232532,-430.0,0.00019968,2]
[362857358,1748494232541,-2813.98,0.00019968,2]
[362857359,1748494232551,-430.0,0.00019968,2]
[362857360,1748494232561,-430.0,0.00019968,2]
[362857361,1748494232571,-400.0,0.00019968,2]
[362857362,1748494232581,-400.0,0.00019968,2]
[362857363,1748494232590,-430.0,0.00019968,2]
[362857364,1748494232600,-430.0,0.00019968,2]
[362857365,1748494232610,-400.0,0.00019968,2]
[362857366,1748494232620,-430.0,0.00019968,2]
[362857367,1748494232633,-400.0,0.00019968,2]
[362857368,1748494232643,-430.0,0.00019968,2]
[362857369,1748494232652,-430.0,0.00019968,2]
[362857370,1748494232661,-400.0,0.00019968,2]
[362857371,1748494232672,-1157.71,0.00019968,2]
[362857372,1748494232682,-419.04785281,0.00019968,2]
[362857373,1748494232691,-408.84025747,0.00019968,2]
[362857374,1748494232701,-423.32724219,0.00019968,2]
[362857375,1748494232712,-503.76271534,0.00019968,2]
[362857376,1748494232722,-515.40365239,0.00019968,2]
[362857377,1748494232732,-430.0,0.00019968,2]
[362857378,1748494232742,-1197.27,0.00019968,2]
[362857379,1748494232752,-400.0,0.00019968,2]
[362857380,1748494232762,-505.39024693,0.00019968,2]
[362857381,1748494232771,-416.58471207,0.00019968,2]
[362857382,1748494232781,-410.70527843,0.00019968,2]
[362857383,1748494232791,-430.0,0.00019968,2]
[362857384,1748494232801,-384.12789656,0.00019968,2]
[362857385,1748494232811,-400.0,0.00019968,2]
[362857386,1748494232820,-405.5317828,0.00019968,2]
[362857387,1748494232830,-430.0,0.00019968,2]
[362857388,1748494232840,-406.73211746,0.00019968,2]
[362857389,1748494232850,-430.0,0.00019968,2]
[362857390,1748494232860,-430.0,0.00019968,2]
[362857391,1748494232870,-430.04044802,0.00019968,2]
[362857392,1748494232880,-430.0,0.00019968,2]
[362857393,1748494232891,-419.23891043,0.00019968,2]
[362857394,1748494232901,-430.0,0.00019968,2]
[362857395,1748494232911,-430.0,0.00019968,2]
[362857396,1748494232921,-430.0,0.00019968,2]
[362857397,1748494232930,-378.19225766,0.00019968,2]
[362857398,1748494232940,-430.0,0.00019968,2]
[362857399,1748494232950,-430.0,0.00019968,2]
[362857400,1748494232960,-430.0,0.00019968,2]
[362857401,1748494232969,-430.0,0.00019968,2]
[362857402,1748494232979,-404.635832,0.00019968,2]
[362857403,1748494232989,-384.2046547,0.00019968,2]
[362857404,1748494232999,-430.0,0.00019968,2]
[362857405,1748494233009,-430.0,0.00019968,2]
[362857406,1748494233018,-430.0,0.00019968,2]
[362857407,1748494233028,-430.0,0.00019968,2]
[362857408,1748494233038,-376.30547701,0.00019968,2]
[362857409,1748494233047,-430.0,0.00019968,2]
[362857410,1748494233057,-430.0,0.00019968,2]
[362857411,1748494233067,-430.0,0.00019968,2]
[362857412,1748494233077,-430.0,0.00019968,2]
[362857413,1748494233087,-311.13,0.00019968,2]
[362857414,1748494233097,-430.0,0.00019968,2]
[362857415,1748494233107,-430.0,0.00019968,2]
[362857416,1748494233118,-430.0,0.00019968,2]
[362857417,1748494233128,-430.0,0.00019968,2]
[362857418,1748494233138,-430.0,0.00019968,2]
[362857419,1748494233149,-430.0,0.00019968,2]
[362857420,1748494233159,-361.75417049,0.00019968,2]
[362857421,1748494233169,-430.0,0.00019968,2]
[362857422,1748494233179,-430.0,0.00019968,2]
[362857423,1748494233190,-430.0,0.00019968,2]
[362857424,1748494233200,-430.0,0.00019968,2]
[362857425,1748494233210,-336.79567868,0.00019968,2]
[362857426,1748494233220,-615.90127479,0.00019968,2]
[362857427,1748494233230,-376.80851865,0.00019969,2]
[362857428,1748494233240,-430.0,0.00019969,2]
[362857429,1748494233254,-430.0,0.00019969,2]
[362857430,1748494233264,-444.51041699,0.00019969,2]
[362857431,1748494233275,-430.0,0.00019969,2]
[362857432,1748494233286,-450.02466814,0.00019969,2]
[362857433,1748494233297,-430.0,0.00019969,2]
[362857434,1748494233308,-430.0,0.00019969,2]
[362857435,1748494233318,-430.0,0.00019969,2]
[362857436,1748494233329,-430.0,0.00019969,2]
[362857437,1748494233340,-430.0,0.00019969,2]
[362857438,1748494233350,-430.0,0.00019969,2]
[362857439,1748494233361,-430.0,0.00019969,2]
[362857440,1748494233372,-430.0,0.00019969,2]
[362857441,1748494233383,-430.0,0.00019969,2]
[362857442,1748494233394,-430.0,0.00019969,2]
[362857443,1748494233404,-430.0,0.00019969,2]
[362857444,1748494233415,-430.0,0.00019969,2]
[362857445,1748494233425,-430.0,0.00019969,2]
[362857446,1748494233436,-500.0,0.00019969,2]
[362857447,1748494233445,-199.40749686,0.00019969,2]
[362857448,1748494233455,-430.0,0.00019969,2]
[362857449,1748494233465,-430.0,0.00019969,2]
[362857450,1748494233475,-430.0,0.00019969,2]
[362857451,1748494233486,-430.0,0.00019969,2]
[362857452,1748494233500,-430.0,0.00019969,2]
[362857453,1748494233511,-430.0,0.00019969,2]
[362857454,1748494233521,-470.0,0.00019969,2]
[362857455,1748494233531,-384.20434416,0.00019969,2]
[362857456,1748494233542,-430.0,0.00019969,2]
[362857457,1748494233552,-430.0,0.00019969,2]
[362857458,1748494233562,-430.0,0.00019969,2]
[362857459,1748494233572,-470.0,0.00019969,2]
[362857460,1748494233582,-470.0,0.00019969,2]
[362857461,1748494233592,-430.0,0.00019969,2]
[362857462,1748494233603,-430.0,0.00019969,2]
[362857463,1748494233613,-430.0,0.00019969,2]
[362857464,1748494233624,-430.0,0.00019969,2]
[362857465,1748494233636,-430.0,0.00019969,2]
[362857466,1748494233646,-430.0,0.00019969,2]
[362857467,1748494233657,-446.98,0.00019969,2]
[362857468,1748494233667,-430.0,0.00019969,2]
[362857469,1748494233677,-430.0,0.00019969,2]
[362857470,1748494233687,-430.0,0.00019969,2]
[362857471,1748494233697,-430.0,0.00019969,2]
[362857472,1748494233707,-223.49018546,0.00019969,2]
[362857473,1748494233850,-430.0,0.00019969,2]
[362857474,1748494233861,-430.0,0.00019969,2]
[362857475,1748494233871,-430.0,0.00019969,2]
[362857476,1748494233881,-430.0,0.00019969,2]
[362857477,1748494233892,-430.0,0.00019969,2]
[362857478,1748494233903,-389.7104581,0.00019969,2]
[362857479,1748494233914,-981.46,0.00019969,2]
[362857480,1748494233924,-430.0,0.00019969,2]
[362857481,1748494233935,-430.0,0.00019969,2]
[362857482,1748494233945,-383.63086237,0.00019969,2]
[362857483,1748494233955,-430.0,0.00019969,2]
[362857484,1748494233965,-430.0,0.00019969,2]
[362857485,1748494233975,-430.0,0.00019969,2]
[362857486,1748494233987,-430.0,0.00019969,2]
[362857487,1748494234003,-430.0,0.00019969,2]
[362857488,1748494234012,-430.0,0.00019969,2]
[362857489,1748494234022,-430.0,0.00019969,2]
[362857490,1748494234033,-430.0,0.00019969,2]
[362857491,1748494234043,-400.0,0.00019969,2]
[362857492,1748494234054,-430.0,0.00019969,2]
[362857493,1748494234064,-430.0,0.00019969,2]
[362857494,1748494234074,-430.0,0.00019969,2]
[362857495,1748494234085,-401.60085978,0.00019969,2]
[362857496,1748494234096,-430.0,0.00019969,2]
[362857497,1748494234106,-430.0,0.00019969,2]
[362857498,1748494234118,-430.0,0.00019969,2]
[362857499,1748494234129,-430.0,0.00019969,2]
[362857500,1748494234140,-444.55157478,0.00019969,2]
[362857501,1748494234152,-400.0,0.00019969,2]
[362857502,1748494234162,-430.0,0.00019969,2]
[362857503,1748494234173,-430.0,0.00019969,2]
[362857504,1748494234183,-606.31,0.00019969,2]
[362857505,1748494234194,-400.0,0.00019969,2]
[362857506,1748494234204,-380.31616048,0.00019969,2]
[362857507,1748494234213,-430.0,0.00019969,2]
[362857508,1748494234223,-430.0,0.00019969,2]
[362857509,1748494234233,-430.0,0.00019969,2]
[362857510,1748494234243,-430.0,0.00019969,2]
[362857511,1748494234261,-407.96637653,0.00019969,2]
[362857512,1748494234271,-430.0,0.00019969,2]
[362857513,1748494234281,-430.0,0.00019969,2]
[362857514,1748494234291,-430.38,0.00019969,2]
[362857515,1748494234302,-430.0,0.00019969,2]
[362857516,1748494234312,-430.0,0.00019969,2]
[362857517,1748494234323,-419.22584916,0.00019969,2]
[362857518,1748494234333,-430.0,0.00019969,2]
[362857519,1748494234343,-430.0,0.00019969,2]
[362857520,1748494234353,-430.0,0.00019969,2]
[362857521,1748494234364,-470.09,0.00019969,2]
[362857522,1748494234374,-430.0,0.00019969,2]
[362857523,1748494234383,-430.0,0.00019969,2]
[362857524,1748494234394,-607.17,0.00019969,2]
[362857525,1748494234405,-430.0,0.00019969,2]
[362857526,1748494234420,-430.0,0.00019969,2]
[362857527,1748494234432,-523.10685768,0.00019969,2]
[362857528,1748494234445,-375.64,0.00019969,2]
[362857529,1748494234457,-430.0,0.00019969,2]
[362857530,1748494234467,-452.94259567,0.00019969,2]
[362857531,1748494234477,-430.0,0.00019969,2]
[362857532,1748494234487,-430.0,0.00019969,2]
[362857533,1748494234501,-503.66294754,0.00019969,2]
[362857534,1748494234511,-430.0,0.00019969,2]
[362857535,1748494234521,-430.0,0.00019969,2]
[362857536,1748494234531,-1824.96,0.00019969,2]
[362857537,1748494234541,-500.0,0.00019969,2]
[362857538,1748494234551,-1243.86,0.00019969,2]
[362857539,1748494234562,-430.0,0.00019969,2]
[362857540,1748494234572,-430.0,0.00019969,2]
[362857541,1748494234581,-430.0,0.00019969,2]
[362857542,1748494234591,-430.0,0.00019969,2]
[362857543,1748494234600,-430.0,0.00019969,2]
[362857544,1748494234609,-7610.96453862,0.0001997,3]
[362857545,1748494234619,-1926.11153984,0.0001997,2]
[362857546,1748494234628,-362.15540799,0.0001997,2]
[362857547,1748494234641,-430.0,0.0001997,2]
[362857548,1748494234650,-430.0,0.0001997,2]
[362857549,1748494234660,-430.0,0.0001997,2]
[362857550,1748494234669,-430.0,0.0001997,2]
[362857551,1748494234679,-430.0,0.0001997,2]
[362857552,1748494234689,-430.0,0.0001997,2]
[362857553,1748494234698,-430.0,0.0001997,2]
[362857554,1748494234709,-552.75987912,0.0001997,2]
[362857555,1748494234719,-430.0,0.0001997,2]
[362857556,1748494234729,-370.0,0.0001997,2]
[362857557,1748494234738,-370.0,0.0001997,2]
[362857558,1748494234750,-356.28136341,0.0001997,2]
[362857559,1748494234760,-430.0,0.0001997,2]
[362857560,1748494234769,-430.0,0.0001997,2]
[362857561,1748494234779,-404.144865,0.0001997,2]
[362857562,1748494234788,-300.0,0.0001997,2]
[362857563,1748494234797,-430.0,0.0001997,2]
[362857564,1748494234808,-498.61877372,0.0001997,2]
[362857565,1748494234818,-430.0,0.0001997,2]
[362857566,1748494234828,-430.0,0.0001997,2]
[362857567,1748494234838,-404.78084696,0.0001997,2]
[362857568,1748494234847,-401.6777489,0.0001997,2]
[362857569,1748494234856,-430.0,0.0001997,2]
[362857570,1748494234866,-430.0,0.0001997,2]
[362857571,1748494234875,-430.0,0.0001997,2]
[362857572,1748494234885,-430.0,0.0001997,2]
[362857573,1748494234894,-430.0,0.0001997,2]
[362857574,1748494234903,-450.0,0.0001997,2]
[362857575,1748494234912,-621.22943178,0.0001997,2]
[362857576,1748494234922,-450.0,0.0001997,2]
[362857577,1748494234931,-430.0,0.0001997,2]
[362857578,1748494234941,-430.0,0.0001997,2]
[362857579,1748494234951,-450.0,0.0001997,2]
[362857580,1748494234960,-403.4372791,0.0001997,2]
[362857581,1748494234970,-430.0,0.0001997,2]
[362857582,1748494234979,-450.0,0.0001997,2]
[362857583,1748494234989,-400.0,0.0001997,2]
[362857584,1748494235003,-450.0,0.0001997,2]
[362857585,1748494235011,-408.93348042,0.0001997,2]
[362857586,1748494235021,-450.0,0.0001997,2]
[362857587,1748494235030,-430.0,0.0001997,2]
[362857588,1748494235039,-416.46770572,0.0001997,2]
[362857589,1748494235048,-508.32965219,0.0001997,2]
[362857590,1748494235058,-400.0,0.0001997,2]
[362857591,1748494235067,-430.0,0.0001997,2]
[362857592,1748494235077,-508.52002369,0.0001997,2]
[362857593,1748494235086,-405.29835191,0.0001997,2]
[362857594,1748494235096,-403.41986618,0.0001997,2]
[362857595,1748494235105,-400.0,0.0001997,2]
[362857596,1748494235115,-400.0,0.0001997,2]
[362857597,1748494235124,-470.0,0.0001997,2]
[362857598,1748494235134,-505.315503,0.0001997,2]
[362857599,1748494235143,-400.0,0.0001997,2]
[362857600,1748494235153,-430.0,0.0001997,2]
[362857601,1748494235163,-400.0,0.0001997,2]
[362857602,1748494235172,-508.63579621,0.0001997,2]
[362857603,1748494235181,-430.0,0.0001997,2]
[362857604,1748494235190,-400.0,0.0001997,2]
[362857605,1748494235200,-422.02520564,0.0001997,2]